bitfinex-derivatives/quotes_ETHF0:USTF0_20210109
["timestamp","ask_amount","ask_price","bid_price","bid_amount"]
[1610211688123,108.81234903,1205.9,1205.0,4.00959]
[1610211688325,108.81234903,1205.9,1205.3,50.0]
[1610211688525,108.81234903,1205.9,1205.1,50.0]
[1610211688726,108.81234903,1205.9,1205.0,4.00959]
[1610211688938,2.1892,1205.9,1205.8,4.00959]
[1610211689723,2.1892,1205.9,1205.8,54.00959]
[1610211690526,106.6346775,1206.1,1205.8,54.00959]
[1610211690929,106.6346775,1206.1,1206.0,4.00959]
[1610211691331,106.6346775,1206.1,1205.9,50.0]
[1610211691532,36.30635223,1206.4,1205.5,50.0]
[1610211691733,36.30635223,1206.4,1205.8,50.0]
[1610211691933,87.32232009,1205.9,1205.8,50.0]
[1610211692233,106.38473493,1205.9,1205.8,50.0]
[1610211692935,23.07200484,1205.9,1205.8,54.00959]
[1610211693135,19.06241484,1205.9,1205.8,54.00959]
[1610211693334,106.37339208,1205.9,1205.8,54.00959]
[1610211693735,106.40854425,1206.0,1205.8,54.00959]
[1610211693937,106.46243358,1206.1,1205.8,54.00959]
[1610211694135,106.46243358,1206.1,1205.9,50.0]
[1610211694336,2.4302,1206.2,1206.0,50.0]
[1610211694736,2.4302,1206.2,1205.9,50.0]
[1610211694938,2.4302,1206.2,1206.1,4.00959]
[1610211695140,2.4302,1206.2,1206.1,54.00959]
[1610211701866,2.4302,1206.2,1206.1,62.27009]
[1610211702063,2.4302,1206.2,1206.1,54.00959]
[1610211705851,2.4302,1206.2,1206.1,112.53689]
[1610211708853,2.4302,1206.2,1206.1,54.00959]
[1610211713660,2.4302,1206.2,1206.1,55.27606586]
[1610211716563,2.4302,1206.2,1206.1,54.00959]
[1610211717564,106.9077535,1207.2,1206.1,54.00959]
[1610211717868,106.95706527,1207.3,1206.2,50.0]
[1610211718064,106.95706527,1207.3,1206.2,52.2784]
[1610211718465,107.00590712,1207.4,1206.3,50.0]
[1610211718665,107.00590712,1207.4,1206.4,50.0]
[1610211719166,107.00590712,1207.4,1207.3,4.00959]
[1610211719366,106.47302213,1207.5,1207.3,4.00959]
[1610211719567,106.47302213,1207.5,1207.3,54.00959]
[1610211719767,106.44899359,1207.4,1207.3,54.00959]
[1610211719966,106.44899359,1207.4,1207.3,4.00959]
[1610211720168,87.37608774,1207.4,1207.3,54.00959]
[1610211720368,106.47336017,1207.6,1207.3,54.00959]
[1610211720767,106.47336017,1207.6,1207.4,50.0]
[1610211721067,106.47336017,1207.6,1207.5,4.00959]
[1610211721269,106.47336017,1207.6,1207.5,54.00959]
[1610211722571,108.46902559,1207.6,1207.5,54.00959]
[1610211722769,108.46902559,1207.6,1207.5,39.00959]
[1610211723169,108.46902559,1207.6,1207.5,43.01918]
[1610211723373,1.99566542,1207.6,1207.5,43.01918]
[1610211723970,89.17155885,1207.6,1207.5,43.01918]
[1610211724369,108.19016769,1207.6,1207.5,43.01918]
[1610211724769,89.17155885,1207.6,1207.5,43.01918]
[1610211724972,108.15335034,1207.6,1207.5,43.01918]
[1610211726070,5.03584427,1207.6,1207.5,43.01918]
[1610211726472,5.03584427,1207.6,1207.5,37.95214955]
[1610211727374,5.03584427,1207.6,1207.5,33.94255955]
[1610211727578,5.03584427,1207.6,1207.4,50.0]
[1610211727779,64.12194427,1207.6,1206.7,50.0]
[1610211727975,16.21705792,1207.5,1206.7,50.0]
[1610211728174,17.88195792,1207.5,1206.6,50.0]
[1610211728375,86.57784816,1207.1,1206.6,50.0]
[1610211728575,88.76864816,1207.1,1206.5,50.0]
[1610211728778,86.45784193,1206.9,1206.5,50.0]
[1610211728976,86.45784193,1206.9,1206.4,50.0]
[1610211729175,86.45784193,1206.9,1206.5,4.00959]
[1610211729377,86.39613187,1206.8,1206.5,4.00959]
[1610211729578,86.26875097,1206.7,1206.5,4.00959]
[1610211729778,86.26875097,1206.7,1206.1,50.0]
[1610211729977,86.24246671,1206.6,1206.1,50.0]
[1610211730180,86.24246671,1206.6,1205.8,50.0]
[1610211730377,86.18697872,1206.5,1205.8,50.0]
[1610211730578,86.07366343,1206.4,1206.0,50.0]
[1610211730777,63.7944,1206.3,1206.0,50.0]
[1610211730978,149.80509005,1206.3,1205.8,50.0]
[1610211731381,85.95690802,1206.1,1205.4,50.0]
[1610211731581,85.90153547,1206.0,1205.4,50.0]
[1610211731780,85.90153547,1206.0,1205.5,50.0]
[1610211731980,85.91626432,1205.9,1205.1,50.0]
[1610211732378,85.9314806,1205.8,1205.0,50.0]
[1610211732583,85.9314806,1205.8,1204.9,49.4629]
[1610211732786,85.95084201,1205.7,1205.1,50.0]
[1610211732983,85.95084201,1205.7,1205.0,50.0]
[1610211733183,85.95084201,1205.7,1204.9,49.4629]
[1610211733382,85.95084201,1205.7,1205.1,50.0]
[1610211733983,85.89242877,1205.6,1204.7,4.00959]
[1610211734784,85.89242877,1205.6,1204.3,2.1567]
[1610211735183,4.00959,1205.4,1204.5,4.00959]
[1610211735385,92.19694991,1205.4,1204.3,2.1567]
[1610211735582,56.588,1205.3,1204.3,2.1567]
[1610211735981,56.588,1205.3,1205.2,50.0]
[1610211736186,142.27564892,1205.3,1205.2,50.0]
[1610211736586,72.83024367,1205.3,1204.0,2.2458]
[1610211736786,89.0735473,1205.3,1204.0,2.2458]
[1610211736985,89.0735473,1205.3,1204.3,50.0]
[1610211737185,4.00959,1204.9,1204.3,50.0]
[1610211737385,4.00959,1204.9,1204.2,54.00959]
[1610211737587,85.78634594,1205.2,1204.2,4.00959]
[1610211737786,85.78634594,1205.2,1204.3,50.0]
[1610211737990,8.7762,1205.4,1204.3,50.0]
[1610211737991,88.220865,1205.4,1204.3,50.0]
[1610211738189,2.4493,1205.4,1204.4,50.0]
[1610211738687,2.4493,1205.4,1204.3,51.9309]
[1610211738886,2.4493,1205.4,1204.3,1.9309]
[1610211739088,2.4493,1205.4,1204.7,4.00959]
[1610211739889,2.4493,1205.4,1204.8,50.0]
[1610211740287,2.4493,1205.4,1204.9,50.0]
[1610211740489,2.3682,1205.8,1204.9,50.0]
[1610211740688,85.95846385,1205.9,1204.8,50.0]
[1610211741088,96.3203629,1206.0,1205.1,4.00959]
[1610211741688,85.89048746,1205.9,1205.1,4.00959]
[1610211741888,85.89048746,1205.9,1205.2,50.0]
[1610211742288,85.85119395,1205.8,1205.3,50.0]
[1610211742488,87.92649395,1205.8,1205.3,50.0]
[1610211742691,87.92649395,1205.8,1205.2,50.0]
[1610211743091,4.00959,1205.5,1205.1,50.0]
[1610211743393,6.14489,1205.5,1205.1,50.0]
[1610211743591,6.14489,1205.5,1204.4,50.0]
[1610211743794,6.14489,1205.5,1204.9,50.0]
[1610211743991,2.1353,1205.5,1204.9,50.0]
[1610211744190,2.1353,1205.5,1205.0,50.0]
[1610211744593,2.1353,1205.5,1205.1,50.0]
[1610211744991,2.1353,1205.5,1204.4,50.0]
[1610211745191,2.1353,1205.5,1204.3,1.9309]
[1610211745392,2.1353,1205.5,1204.5,50.0]
[1610211745596,85.87150325,1205.9,1205.4,4.00959]
[1610211745793,88.52585439,1206.1,1205.4,4.00959]
[1610211745993,2.5965,1206.1,1205.5,50.0]
[1610211746194,86.0147491,1206.4,1205.5,50.0]
[1610211746396,86.0147491,1206.4,1205.6,50.0]
[1610211746594,46.07738927,1206.4,1205.6,50.0]
[1610211746796,86.04367999,1206.5,1205.7,50.0]
[1610211747197,86.04367999,1206.5,1205.7,68.1422]
[1610211747396,86.07987046,1206.6,1205.7,68.1422]
[1610211747596,86.13346947,1206.8,1206.4,4.00959]
[1610211747797,86.13346947,1206.8,1206.5,50.0]
[1610211748200,86.13346947,1206.8,1206.6,50.0]
[1610211748599,86.19280648,1206.9,1206.5,50.0]
[1610211749099,86.19280648,1206.9,1206.6,50.0]
[1610211749500,86.19280648,1206.9,1206.8,4.00959]
[1610211749700,86.24087799,1207.0,1206.8,4.00959]
[1610211750200,86.24087799,1207.0,1206.8,54.00959]
[1610211750401,18.81697499,1207.1,1206.8,54.00959]
[1610211750402,86.29563408,1207.1,1206.9,50.0]
[1610211750803,86.29563408,1207.1,1207.0,50.0]
[1610211751404,86.29563408,1207.1,1206.9,50.0]
[1610211751805,86.29563408,1207.1,1207.0,50.0]
[1610211752305,86.29563408,1207.1,1206.9,50.0]
[1610211752507,86.29563408,1207.1,1207.0,50.0]
[1610211753308,21.90966858,1207.1,1207.0,50.0]
[1610211753805,51.90966858,1207.1,1207.0,50.0]
[1610211754005,48.86849762,1207.1,1206.8,50.0]
[1610211754206,51.00719762,1207.1,1206.8,50.0]
[1610211754406,86.43439246,1206.9,1206.1,50.0]
[1610211754607,82.856,1206.8,1206.1,50.0]
[1610211754807,86.41165353,1206.6,1206.0,50.0]
[1610211755007,86.34465843,1206.4,1206.0,50.0]
[1610211755207,30.0,1206.3,1205.5,50.0]
[1610211755407,116.3375204,1206.3,1205.5,50.0]
[1610211755608,116.3375204,1206.3,1205.1,66.6007]
[1610211755810,86.34079385,1206.2,1205.6,50.0]
[1610211756207,86.34079385,1206.2,1205.1,66.6007]
[1610211756407,86.36942387,1206.1,1205.1,66.6007]
[1610211756607,88.18942387,1206.1,1205.3,50.0]
[1610211756810,1.82,1206.1,1205.3,50.0]
[1610211757007,1.82,1206.1,1205.1,69.0305]
[1610211757207,1.82,1206.1,1205.3,50.0]
[1610211757607,1.82,1206.1,1205.5,4.00959]
[1610211758014,1.82,1206.1,1205.6,50.0]
[1610211758212,1.82,1206.1,1205.7,50.0]
[1610211758713,1.82,1206.1,1205.6,50.0]
[1610211759114,90.44986311,1206.3,1205.7,50.0]
[1610211759313,90.44986311,1206.3,1205.5,4.00959]
[1610211759513,4.00959,1206.3,1205.8,50.0]
[1610211759713,4.00959,1206.3,1205.6,50.0]
[1610211759913,4.00959,1206.3,1205.5,4.00959]
[1610211760113,4.00959,1206.3,1205.7,50.0]
[1610211760514,90.6036823,1206.3,1205.6,50.0]
[1610211760714,90.6036823,1206.3,1205.7,50.0]
[1610211761115,120.6036823,1206.3,1205.6,50.0]
[1610211761514,120.6036823,1206.3,1205.8,50.0]
[1610211761717,4.00959,1206.1,1205.8,50.0]
[1610211762116,86.63147633,1206.2,1205.5,50.0]
[1610211762317,86.65119961,1206.3,1205.5,50.0]
[1610211762518,86.65119961,1206.3,1205.6,50.0]
[1610211762718,1.9187,1206.4,1205.5,50.0]
[1610211762918,105.59615801,1206.5,1205.5,50.0]
[1610211763118,105.59615801,1206.5,1205.7,50.0]
[1610211763318,105.6206799,1206.6,1205.7,50.0]
[1610211763517,105.6206799,1206.6,1205.5,50.0]
[1610211763719,86.69618644,1206.6,1206.2,4.00959]
[1610211763919,86.69618644,1206.6,1206.3,50.0]
[1610211764119,93.07863999,1206.7,1206.3,50.0]
[1610211764318,93.07863999,1206.7,1206.4,50.0]
[1610211764518,15.87547034,1206.7,1206.4,50.0]
[1610211764718,6.4142,1206.7,1206.2,4.00959]
[1610211764918,92.25261857,1206.8,1206.2,4.00959]
[1610211765117,92.25261857,1206.8,1206.5,31.0]
[1610211765518,92.25261857,1206.8,1206.2,4.00959]
[1610211765918,92.25261857,1206.8,1206.5,50.0]
[1610211766520,92.25261857,1206.8,1206.2,4.00959]
[1610211766918,92.25261857,1206.8,1206.4,50.0]
[1610211767119,92.25261857,1206.8,1206.3,52.3343]
[1610211767318,92.25261857,1206.8,1206.3,2.3343]
[1610211767519,92.25261857,1206.8,1206.4,50.0]
[1610211767719,5.66029,1206.8,1206.4,50.0]
[1610211767919,4.00959,1206.8,1206.5,50.0]
[1610211768319,4.00959,1206.8,1206.3,2.3343]
[1610211768320,4.00959,1206.8,1206.4,50.0]
[1610211768719,90.56207877,1206.8,1206.5,50.0]
[1610211769123,90.56207877,1206.8,1206.3,2.3343]
[1610211769124,86.51682838,1206.7,1206.4,50.0]
[1610211769324,86.51682838,1206.7,1206.3,2.3343]
[1610211769325,90.53667818,1206.8,1206.5,50.0]
[1610211770123,90.53667818,1206.8,1206.3,52.3343]
[1610211770323,86.5104109,1206.7,1206.3,52.3343]
[1610211770525,88.49481296,1206.7,1206.3,52.3343]
[1610211770726,86.48443887,1206.6,1206.3,52.3343]
[1610211771526,116.48443887,1206.6,1206.3,2.3343]
[1610211771728,1.98461023,1206.5,1205.8,50.0]
[1610211772327,88.5438241,1206.5,1205.8,50.0]
[1610211772527,118.5438241,1206.5,1205.7,108.1876]
[1610211772926,118.5438241,1206.5,1205.8,50.0]
[1610211773127,1.98514244,1206.4,1205.8,50.0]
[1610211773326,1.98514244,1206.4,1205.7,55.6081]
[1610211773529,1.98514244,1206.4,1205.9,50.0]
[1610211773727,5.99473244,1206.4,1205.9,54.00959]
[1610211773927,5.99473244,1206.4,1205.9,4.00959]
[1610211774127,1.98514244,1206.4,1205.9,4.00959]
[1610211774330,1.98514244,1206.4,1206.0,50.0]
[1610211774528,1.98514244,1206.4,1206.1,50.0]
[1610211774728,1.98479898,1206.3,1206.1,50.0]
[1610211775630,1.98479898,1206.3,1206.2,4.00959]
[1610211776430,1.98420795,1206.5,1206.2,4.00959]
[1610211776629,1.98420795,1206.5,1206.1,50.0]
[1610211776830,1.98420795,1206.5,1206.0,50.0]
[1610211777329,1.98420795,1206.5,1206.2,50.0]
[1610211777632,1.98420795,1206.5,1206.1,50.0]
[1610211777836,4.00959,1206.3,1206.1,50.0]
[1610211778034,4.00959,1206.3,1206.2,50.0]
[1610211779737,4.00959,1206.3,1206.2,54.00959]
[1610211780137,2.5397,1206.6,1206.2,54.00959]
[1610211780336,86.28321116,1206.6,1206.3,50.0]
[1610211780937,86.28321116,1206.6,1206.4,50.0]
[1610211781339,86.3437837,1206.7,1206.3,50.0]
[1610211781738,1.98434596,1206.5,1206.4,54.00959]
[1610211781938,4.33544596,1206.5,1206.4,4.00959]
[1610211783039,4.33544596,1206.5,1206.2,50.0]
[1610211783440,4.33544596,1206.5,1205.7,53.661]
[1610211783840,4.33544596,1206.5,1205.8,54.00959]
[1610211784041,4.33544596,1206.5,1205.8,4.00959]
[1610211784240,4.33544596,1206.5,1205.9,50.0]
[1610211784642,4.33544596,1206.5,1205.8,50.0]
[1610211784840,1.98481989,1206.4,1205.8,50.0]
[1610211785240,1.98481989,1206.4,1206.0,50.0]
[1610211785440,1.98481989,1206.4,1205.7,53.661]
[1610211785441,1.98481989,1206.4,1206.1,50.0]
[1610211785842,4.00959,1206.3,1206.0,54.00959]
[1610211786242,4.00959,1206.3,1206.0,4.00959]
[1610211786544,1.98481989,1206.4,1206.1,50.0]
[1610211786945,1.98481989,1206.4,1206.2,50.0]
[1610211787146,1.98481989,1206.4,1206.1,50.0]
[1610211787544,1.98481989,1206.4,1206.2,50.0]
[1610211787744,5.99440989,1206.4,1206.2,50.0]
[1610211787944,5.99440989,1206.4,1206.1,50.0]
[1610211788245,5.99440989,1206.4,1206.2,50.0]
[1610211788644,5.99440989,1206.4,1206.1,50.0]
[1610211788844,5.99440989,1206.4,1206.3,50.0]
[1610211789246,4.00959,1206.4,1206.0,4.00959]
[1610211789847,4.00959,1206.4,1206.3,50.0]
[1610211790246,4.00959,1206.4,1206.0,4.00959]
[1610211790448,5.99442954,1206.4,1206.3,50.0]
[1610211790647,5.99442954,1206.4,1206.1,50.0]
[1610211790848,5.99442954,1206.4,1206.0,4.00959]
[1610211791249,5.99442954,1206.4,1206.3,50.0]
[1610211791448,16.99442954,1206.4,1206.1,50.0]
[1610211791648,16.99442954,1206.4,1206.0,4.00959]
[1610211791848,1.98472609,1206.3,1206.2,54.00959]
[1610211792050,1.98472609,1206.3,1206.2,4.00959]
[1610211792448,1.98472609,1206.3,1206.2,54.00959]
[1610211794148,11.0,1206.4,1206.2,54.00959]
[1610211794548,11.0,1206.4,1206.3,50.0]
[1610211794950,11.0,1206.4,1206.2,54.00959]
[1610211797353,11.0,1206.4,1206.1,50.0]
[1610211797753,11.0,1206.4,1205.9,4.00959]
[1610211798153,11.0,1206.4,1206.0,50.0]
[1610211798555,11.0,1206.4,1206.1,50.0]
[1610211798753,11.0,1206.4,1206.2,50.0]
[1610211799153,11.0,1206.4,1206.3,50.0]
[1610211799453,11.0,1206.4,1206.0,50.0]
[1610211799753,4.00959,1206.3,1206.2,4.00959]
[1610211799953,4.00959,1206.3,1206.2,54.00959]
[1610211800155,4.00959,1206.3,1206.2,50.0]
[1610211800354,4.00959,1206.3,1206.1,50.0]
[1610211800754,4.00959,1206.3,1205.8,50.0]
[1610211801156,4.00959,1206.3,1206.0,50.0]
[1610211801557,4.00959,1206.3,1205.9,50.0]
[1610211801758,4.00959,1206.0,1205.9,54.00959]
[1610211802660,4.00959,1206.0,1205.9,4.00959]
[1610211802858,4.00959,1206.0,1205.9,54.00959]
[1610211804762,34.00959,1206.0,1205.9,54.00959]
[1610211804960,34.00959,1206.0,1205.8,50.0]
[1610211805162,34.00959,1206.0,1205.9,50.0]
[1610211805360,36.44739,1206.0,1205.9,50.0]
[1610211806961,36.44739,1206.0,1205.5,50.0]
[1610211807363,36.44739,1206.0,1205.6,50.0]
[1610211807766,4.00959,1205.7,1205.6,50.0]
[1610211807966,6.10859,1205.7,1205.5,50.0]
[1610211808368,6.10859,1205.7,1205.6,50.0]
[1610211809571,2.099,1205.7,1205.6,50.0]
[1610211809771,2.099,1205.7,1205.6,54.00959]
[1610211810872,4.00959,1205.9,1205.6,54.00959]
[1610211811273,4.00959,1205.9,1205.7,50.0]
[1610211811673,4.00959,1205.9,1205.8,50.0]
[1610211811873,4.00959,1205.9,1205.8,54.00959]
[1610211813576,4.00959,1205.9,1205.8,4.00959]
[1610211813976,4.00959,1205.9,1205.8,54.00959]
[1610211814980,11.0,1206.4,1205.8,54.00959]
[1610211815181,11.0,1206.4,1205.9,63.8417]
[1610211815385,11.0,1206.4,1205.9,113.8417]
[1610211815579,11.0,1206.4,1205.9,63.8417]
[1610211815783,11.0,1206.4,1206.3,4.00959]
[1610211816581,11.0,1206.4,1206.3,54.00959]
[1610211816979,11.0,1206.4,1206.3,55.74429]
[1610211817783,11.0,1206.4,1206.3,108.67709]
[1610211818585,11.0,1206.4,1206.3,55.74429]
[1610211818984,11.0,1206.4,1206.3,1.7347]
[1610211819184,11.0,1206.4,1206.1,50.0]
[1610211819384,11.0,1206.4,1206.2,50.0]
[1610211819784,11.0,1206.4,1205.7,1.903]
[1610211819785,11.0,1206.4,1206.1,52.3217]
[1610211819988,11.0,1206.4,1206.3,4.00959]
[1610211820184,11.0,1206.4,1206.3,54.00959]
[1610211823889,11.0,1206.4,1206.3,50.0]
[1610211824490,11.0,1206.4,1206.3,54.00959]
[1610211826395,15.00959,1206.4,1206.3,54.00959]
[1610211828194,11.0,1206.4,1206.3,54.00959]
[1610211831502,11.0,1206.4,1206.3,55.78819]
[1610211834403,11.0,1206.4,1206.3,57.05416472]
[1610211835005,86.15355125,1208.1,1206.4,56.9722]
[1610211835203,86.18066184,1208.2,1206.4,56.9722]
[1610211835603,90.21825354,1208.3,1206.4,106.9722]
[1610211836004,90.21825354,1208.3,1206.5,50.0]
[1610211836303,68.32629446,1208.3,1206.6,50.0]
[1610211836503,86.22416008,1208.4,1208.2,4.00959]
[1610211836903,86.22416008,1208.4,1208.3,64.6407]
[1610211837104,86.22416008,1208.4,1208.3,114.6407]
[1610211837505,86.2877298,1208.5,1208.3,114.6407]
[1610211837705,88.97194427,1208.6,1208.4,50.0]
[1610211838105,88.97194427,1208.6,1208.5,50.0]
[1610211838106,2.5864,1208.6,1208.5,50.0]
[1610211838305,86.43850367,1208.7,1208.5,58.0097]
[1610211838507,86.4457991,1208.8,1208.6,4.00959]
[1610211838905,86.4457991,1208.8,1208.7,50.0]
[1610211839106,105.38086125,1208.9,1208.7,50.0]
[1610211839306,105.38086125,1208.9,1208.8,50.0]
[1610211839506,86.51102364,1208.9,1208.8,50.0]
[1610211839707,86.51102364,1208.9,1208.7,50.0]
[1610211839907,88.62312364,1208.9,1208.7,50.0]
[1610211840107,88.62312364,1208.9,1208.8,50.0]
[1610211840507,88.62312364,1208.9,1208.8,4.00959]
[1610211841507,88.62312364,1208.9,1208.8,54.00959]
[1610211843308,88.62312364,1208.9,1208.8,50.0]
[1610211844509,88.62312364,1208.9,1208.8,54.00959]
[1610211844909,2.1121,1208.9,1208.8,54.00959]
[1610211845109,86.60722031,1209.0,1208.8,54.00959]
[1610211845309,105.51412371,1209.1,1208.8,54.00959]
[1610211845510,105.51412371,1209.1,1208.9,50.0]
[1610211845710,86.60905024,1209.1,1208.9,50.0]
[1610211845910,86.60905024,1209.1,1209.0,50.0]
[1610211846112,18.89873512,1209.1,1209.0,50.0]
[1610211846311,35.09761332,1209.1,1209.0,50.0]
[1610211846511,35.09761332,1209.1,1209.0,4.00959]
[1610211846711,86.59509376,1209.1,1209.0,54.00959]
[1610211847712,105.50023492,1209.1,1209.0,54.00959]
[1610211847913,18.90514116,1209.1,1209.0,54.00959]
[1610211850016,3.03734267,1209.2,1209.0,48.94730916]
[1610211850415,7.04692347,1209.1,1208.8,4.00959]
[1610211850616,22.88654906,1209.1,1208.8,4.00959]
[1610211850814,24.55174906,1209.1,1208.8,4.00959]
[1610211851015,3.03739069,1209.0,1208.8,4.00959]
[1610211851318,86.46822065,1208.9,1208.8,4.00959]
[1610211852119,86.46822065,1208.9,1208.8,54.00959]
[1610211852319,86.46822065,1208.9,1208.8,50.0]
[1610211853019,21.90889384,1209.0,1208.7,50.0]
[1610211853418,86.43494251,1208.8,1208.5,71.31129]
[1610211853621,86.45520037,1208.9,1208.5,71.31129]
[1610211853823,86.45520037,1208.9,1208.7,50.0]
[1610211854622,86.45611776,1209.0,1208.7,50.0]
[1610211854824,86.45611776,1209.0,1208.5,71.31129]
[1610211855422,86.45611776,1209.0,1208.7,50.0]
[1610211855623,86.45611776,1209.0,1208.5,71.31129]
[1610211856027,1.99345052,1208.9,1208.5,71.31129]
[1610211856427,1.99345052,1208.9,1208.6,50.0]
[1610211856625,1.99345052,1208.9,1208.8,4.00959]
[1610211856825,1.99345052,1208.9,1208.8,54.00959]
[1610211857431,88.24215293,1209.1,1208.8,54.00959]
[1610211857632,88.24215293,1209.1,1208.9,97.6689]
[1610211857835,1.6652,1209.1,1208.9,97.6689]
[1610211858032,86.63273696,1209.2,1209.0,50.0]
[1610211858232,18.91064338,1209.3,1209.0,50.0]
[1610211858233,86.66205159,1209.3,1209.0,50.0]
[1610211858433,86.66205159,1209.3,1209.1,50.0]
[1610211858835,86.66205159,1209.3,1209.0,4.00959]
[1610211859034,86.66205159,1209.3,1209.2,50.0]
[1610211859434,86.66205159,1209.3,1209.1,50.0]
[1610211859635,88.74975159,1209.3,1209.2,50.0]
[1610211860035,1.99223652,1209.2,1209.1,50.0]
[1610211860438,1.99223652,1209.2,1209.0,4.00959]
[1610211860635,1.99223652,1209.2,1209.1,50.0]
[1610211863635,2.0877,1209.3,1209.1,50.0]
[1610211864036,2.0877,1209.3,1209.2,50.0]
[1610211864336,2.0877,1209.3,1209.0,4.00959]
[1610211864534,86.80456835,1209.5,1209.2,4.00959]
[1610211864735,86.80456835,1209.5,1209.2,54.00959]
[1610211864934,86.80456835,1209.5,1209.2,4.00959]
[1610211865335,86.80456835,1209.5,1209.3,50.0]
[1610211865535,86.80456835,1209.5,1209.4,50.0]
[1610211866235,90.87639339,1209.6,1209.4,50.0]
[1610211866635,90.87639339,1209.6,1209.5,50.0]
[1610211866835,120.87639339,1209.6,1209.5,50.0]
[1610211867038,37.04545322,1209.6,1209.5,50.0]
[1610211867437,42.10571657,1209.6,1209.5,50.0]
[1610211867837,62.02920931,1209.6,1208.9,50.0]
[1610211868036,56.7017,1209.5,1208.9,50.0]
[1610211868237,86.7017,1209.5,1208.9,50.0]
[1610211868437,86.7017,1209.5,1208.7,50.0]
[1610211868637,4.00959,1208.9,1208.7,50.0]
[1610211868837,6.59459,1208.9,1208.8,50.0]
[1610211869337,6.59459,1208.9,1208.3,50.0]
[1610211869539,93.26953279,1208.9,1208.3,50.0]
[1610211869739,93.26953279,1208.9,1208.8,50.0]
[1610211870140,28.54054674,1208.9,1208.8,50.0]
[1610211870742,28.54054674,1208.9,1208.7,50.0]
[1610211870942,28.54054674,1208.9,1208.2,4.00959]
[1610211871144,25.50363259,1208.9,1208.8,50.0]
[1610211871344,27.49712733,1208.9,1208.8,50.0]
[1610211871544,26.52463555,1208.9,1208.2,4.00959]
[1610211871847,24.53114081,1208.9,1208.2,4.00959]
[1610211872046,24.53114081,1208.9,1208.7,50.0]
[1610211872244,21.49404259,1208.9,1208.7,50.0]
[1610211872645,21.49404259,1208.9,1208.2,4.00959]
[1610211872846,1.99370942,1208.8,1208.3,50.0]
[1610211873247,1.99370942,1208.8,1208.4,50.0]
[1610211873446,1.99370942,1208.8,1208.2,4.00959]
[1610211873645,1.99370942,1208.8,1208.5,50.0]
[1610211873845,1.99370942,1208.8,1208.3,50.0]
[1610211874045,86.5116555,1208.7,1208.3,50.0]
[1610211874245,86.5116555,1208.7,1208.4,50.0]
[1610211874446,88.51023659,1208.8,1208.5,50.0]
[1610211874647,4.00959,1208.7,1208.5,50.0]
[1610211874847,4.00959,1208.7,1208.3,50.0]
[1610211875247,4.00959,1208.7,1208.2,4.00959]
[1610211875446,90.47992434,1208.7,1208.2,4.00959]
[1610211875647,90.47992434,1208.7,1208.4,50.0]
[1610211875847,4.00959,1208.7,1208.4,50.0]
[1610211876047,90.47860266,1208.7,1208.4,50.0]
[1610211876249,4.00959,1208.7,1208.4,50.0]
[1610211876446,90.47939485,1208.7,1208.4,50.0]
[1610211876647,4.00959,1208.5,1208.4,50.0]
[1610211876846,5.67989,1208.5,1208.4,50.0]
[1610211877248,5.67989,1208.5,1208.3,50.0]
[1610211877446,5.67989,1208.5,1208.2,4.00959]
[1610211877846,5.67989,1208.5,1208.3,50.0]
[1610211878246,5.67989,1208.5,1208.4,50.0]
[1610211879346,1.6703,1208.5,1208.4,50.0]
[1610211880548,1.6703,1208.5,1208.4,54.00959]
[1610211881949,90.47939485,1208.7,1208.4,54.00959]
[1610211882250,90.47939485,1208.7,1208.5,50.0]
[1610211883155,90.47939485,1208.7,1208.6,50.0]
[1610211883355,86.46980485,1208.7,1208.6,50.0]
[1610211883756,21.387497,1208.9,1208.6,50.0]
[1610211883757,86.20820712,1208.8,1208.6,50.0]
[1610211884254,86.20820712,1208.8,1208.7,50.0]
[1610211884655,86.20820712,1208.8,1208.7,4.00959]
[1610211884855,2.585,1208.9,1208.7,4.00959]
[1610211885055,2.585,1208.9,1208.7,54.00959]
[1610211885258,86.24049432,1209.0,1208.7,54.00959]
[1610211885457,86.24049432,1209.0,1208.8,50.0]
[1610211885758,86.24049432,1209.0,1208.9,50.0]
[1610211887259,88.23274496,1209.0,1208.9,50.0]
[1610211887458,1.99225064,1209.0,1208.9,50.0]
[1610211888760,1.99225064,1209.0,1208.9,54.00959]
[1610211892464,3.97735064,1209.0,1208.9,54.00959]
[1610211892665,7.98694064,1209.0,1208.9,54.00959]
[1610211895669,7.98694064,1209.0,1208.8,50.0]
[1610211895871,66.97454064,1209.0,1208.8,50.0]
[1610211896270,153.32863708,1209.0,1208.6,50.0]
[1610211896470,86.32000086,1208.9,1208.6,50.0]
[1610211896671,86.32000086,1208.9,1208.3,50.0]
[1610211896870,4.00959,1208.8,1208.3,54.00959]
[1610211897070,4.00959,1208.8,1208.3,4.00959]
[1610211897471,4.00959,1208.8,1208.3,54.00959]
[1610211897871,4.00959,1208.8,1208.4,50.0]
[1610211898372,4.00959,1208.8,1208.5,50.0]
[1610211898571,90.2310698,1208.8,1208.5,50.0]
[1610211898771,4.00959,1208.6,1208.4,50.0]
[1610211898971,6.53029,1208.6,1208.4,50.0]
[1610211899171,6.53029,1208.6,1208.5,50.0]
[1610211899471,2.5207,1208.6,1208.5,50.0]
[1610211899671,2.5207,1208.6,1208.4,50.0]
[1610211899873,2.5207,1208.6,1208.5,50.0]